[Event "Titled Tuesday Blitz May 16 Early 2023"]
[White "Aakanksha Hagawane"]
[Black "Lesbekova, Assel"]
[WhiteFideId "25014510"]
[BlackFideId "13713248"]
[WhiteElo "2081"]
[BlackElo "1805"]
[Result "0-1"]
[Round "10"]
[TimeControl "180+2"]
[Date "2023.05.16"]
[WhiteClock "0:00:00"]
[BlackClock "0:00:04"]

1. e4 {[%clk 0:03:00]}  c5 {[%clk 0:02:58]} 2. Nf3 {[%clk 0:03:00]}  Nc6 {[%clk 0:02:59]} 3. d4 {[%clk 0:03:00]}  cxd4 {[%clk 0:02:59]} 4. Nxd4 {[%clk 0:03:00]}  e5 {[%clk 0:03:00]} 5. Nb5 {[%clk 0:03:00]}  d6 {[%clk 0:03:00]} 6. c4 {[%clk 0:03:00]}  Be7 {[%clk 0:03:00]} 7. N1c3 {[%clk 0:03:00]}  a6 {[%clk 0:03:00]} 8. Na3 {[%clk 0:02:59]}  Be6 {[%clk 0:03:00]} 9. Be3 {[%clk 0:02:55]}  Rc8 {[%clk 0:02:59]} 10. Rc1 {[%clk 0:02:54]}  Nf6 {[%clk 0:02:54]} 11. Be2 {[%clk 0:02:52]}  O-O {[%clk 0:02:48]} 12. O-O {[%clk 0:02:50]}  Nd7 {[%clk 0:02:34]} 13. Nc2 {[%clk 0:02:24]}  Kh8 {[%clk 0:02:25]} 14. b3 {[%clk 0:02:23]}  f5 {[%clk 0:02:23]} 15. f4 {[%clk 0:02:12]}  exf4 {[%clk 0:02:15]} 16. Bxf4 {[%clk 0:02:10]}  Nde5 {[%clk 0:02:11]} 17. Ne3 {[%clk 0:02:00]}  fxe4 {[%clk 0:01:32]} 18. Nxe4 {[%clk 0:01:53]}  Qb6 {[%clk 0:01:15]} 19. Qd2 {[%clk 0:01:44]}  Qd4 {[%clk 0:01:09]} 20. Qxd4 {[%clk 0:01:25]}  Nxd4 {[%clk 0:01:09]} 21. Bd1 {[%clk 0:01:19]}  Nd3 {[%clk 0:01:00]} 22. Bxd6 {[%clk 0:00:50]}  Nxc1 {[%clk 0:00:43]} 23. Bxe7 {[%clk 0:00:43]}  Nce2+ {[%clk 0:00:42]} 24. Kh1 {[%clk 0:00:43]}  Rxf1+ {[%clk 0:00:39]} 25. Nxf1 {[%clk 0:00:43]}  Re8 {[%clk 0:00:37]} 26. Bc5 {[%clk 0:00:30]}  Bg8 {[%clk 0:00:31]} 27. Nd6 {[%clk 0:00:19]}  Rf8 {[%clk 0:00:25]} 28. Ne3 {[%clk 0:00:19]}  Rf6 {[%clk 0:00:14]} 29. h3 {[%clk 0:00:18]}  b6 {[%clk 0:00:14]} 30. Ba3 {[%clk 0:00:18]}  Nc3 {[%clk 0:00:12]} 31. Bg4 {[%clk 0:00:16]}  Nb1 {[%clk 0:00:11]} 32. Bb4 {[%clk 0:00:12]}  a5 {[%clk 0:00:12]} 33. Ne4 {[%clk 0:00:13]}  Rf4 {[%clk 0:00:09]} 34. Bc3 {[%clk 0:00:09]}  Rxe4 {[%clk 0:00:08]} 35. Bxd4 {[%clk 0:00:08]}  Rxd4 {[%clk 0:00:07]} 36. Nf5 {[%clk 0:00:09]}  Rd8 {[%clk 0:00:06]} 37. Ne7 {[%clk 0:00:09]}  Re8 {[%clk 0:00:05]} 38. Nc6 {[%clk 0:00:09]}  Nc3 {[%clk 0:00:05]} 39. a3 {[%clk 0:00:09]}  Nb1 {[%clk 0:00:05]} 40. a4 {[%clk 0:00:07]}  Nd2 {[%clk 0:00:05]} 41. Nd4 {[%clk 0:00:07]}  Rd8 {[%clk 0:00:03]} 42. Nc6 {[%clk 0:00:07]}  Rf8 {[%clk 0:00:04]} 43. Nd4 {[%clk 0:00:04]}  g6 {[%clk 0:00:04]} 44. Kg1 {[%clk 0:00:04]}  Kg7 {[%clk 0:00:05]} 45. Be2 {[%clk 0:00:03]}  Ne4 {[%clk 0:00:04]} 46. Bf3 {[%clk 0:00:03]}  Nc5 {[%clk 0:00:04]} 47. Bc6 {[%clk 0:00:03]}  Kf6 {[%clk 0:00:04]} 48. Bf3 {[%clk 0:00:02]}  Ke5 {[%clk 0:00:04]} 49. Nc6+ {[%clk 0:00:02]}  Kf4 {[%clk 0:00:05]} 50. Nd4 {[%clk 0:00:00]}  Ke3 {[%clk 0:00:04]} 0-1


[Site "https://www.chess.com"]

[Event "Titled Tuesday Blitz May 16 Early 2023"]
[White "Dobre, Claudiu-Cristian"]
[Black "Jodorcovsky Werjivker, Paulo"]
[WhiteFideId "1211854"]
[BlackFideId "3700305"]
[WhiteElo "2207"]
[BlackElo "2120"]
[Result "0-1"]
[Round "10"]
[TimeControl "180+2"]
[Date "2023.05.16"]
[WhiteClock "0:00:00"]
[BlackClock "0:00:33"]

1. e4 {[%clk 0:03:00]}  e5 {[%clk 0:02:58]} 2. Nf3 {[%clk 0:02:59]}  Nc6 {[%clk 0:02:57]} 3. d4 {[%clk 0:02:59]}  exd4 {[%clk 0:02:58]} 4. Nxd4 {[%clk 0:02:59]}  Qf6 {[%clk 0:02:55]} 5. Nxc6 {[%clk 0:02:58]}  Bc5 {[%clk 0:02:54]} 6. Qf3 {[%clk 0:02:58]}  dxc6 {[%clk 0:02:54]} 7. Bc4 {[%clk 0:02:47]}  Ne7 {[%clk 0:02:49]} 8. Qxf6 {[%clk 0:02:47]}  gxf6 {[%clk 0:02:50]} 9. Bh6 {[%clk 0:02:39]}  Rg8 {[%clk 0:02:49]} 10. g3 {[%clk 0:02:37]}  Ng6 {[%clk 0:02:43]} 11. Nd2 {[%clk 0:02:17]}  Ne5 {[%clk 0:02:41]} 12. Bf4 {[%clk 0:02:03]}  Bh3 {[%clk 0:02:37]} 13. Bxe5 {[%clk 0:01:54]}  fxe5 {[%clk 0:02:37]} 14. Ke2 {[%clk 0:01:50]}  Rg6 {[%clk 0:02:27]} 15. Rad1 {[%clk 0:01:41]}  Rd8 {[%clk 0:02:21]} 16. Nb3 {[%clk 0:01:36]}  Bb6 {[%clk 0:02:10]} 17. Rxd8+ {[%clk 0:01:35]}  Kxd8 {[%clk 0:02:11]} 18. a4 {[%clk 0:01:25]}  a5 {[%clk 0:02:09]} 19. f3 {[%clk 0:01:17]}  Ke7 {[%clk 0:02:08]} 20. Rd1 {[%clk 0:00:57]}  h5 {[%clk 0:02:04]} 21. Ke1 {[%clk 0:00:48]}  Rf6 {[%clk 0:02:00]} 22. Ke2 {[%clk 0:00:43]}  Rxf3 {[%clk 0:01:57]} 23. Kxf3 {[%clk 0:00:39]}  Bg4+ {[%clk 0:01:57]} 24. Kg2 {[%clk 0:00:39]}  Bxd1 {[%clk 0:01:58]} 25. Bd3 {[%clk 0:00:39]}  Kd6 {[%clk 0:01:32]} 26. Nd2 {[%clk 0:00:37]}  Kc5 {[%clk 0:01:29]} 27. h3 {[%clk 0:00:20]}  f6 {[%clk 0:01:26]} 28. Nb1 {[%clk 0:00:19]}  h4 {[%clk 0:00:59]} 29. g4 {[%clk 0:00:19]}  Kb4 {[%clk 0:00:53]} 30. Nc3 {[%clk 0:00:19]}  Bxc2 {[%clk 0:00:51]} 31. Bxc2 {[%clk 0:00:19]}  Be3 {[%clk 0:00:49]} 32. Kf3 {[%clk 0:00:17]}  Bd2 {[%clk 0:00:45]} 33. Nd1 {[%clk 0:00:16]}  b5 {[%clk 0:00:42]} 34. Ke2 {[%clk 0:00:14]}  Bf4 {[%clk 0:00:41]} 35. Ne3 {[%clk 0:00:14]}  bxa4 {[%clk 0:00:41]} 36. Kd3 {[%clk 0:00:14]}  a3 {[%clk 0:00:39]} 37. bxa3+ {[%clk 0:00:14]}  Kxa3 {[%clk 0:00:39]} 38. Nc4+ {[%clk 0:00:13]}  Kb4 {[%clk 0:00:40]} 39. Nb2 {[%clk 0:00:13]}  Bc1 {[%clk 0:00:39]} 40. Nc4 {[%clk 0:00:11]}  a4 {[%clk 0:00:38]} 41. Bd1 {[%clk 0:00:05]}  a3 {[%clk 0:00:37]} 42. Nxa3 {[%clk 0:00:05]}  Bxa3 {[%clk 0:00:37]} 43. Be2 {[%clk 0:00:03]}  Kb3 {[%clk 0:00:36]} 44. Bd1+ {[%clk 0:00:03]}  Kb4 {[%clk 0:00:35]} 45. Bc2 {[%clk 0:00:03]}  c5 {[%clk 0:00:35]} 46. Bd1 {[%clk 0:00:01]}  c4+ {[%clk 0:00:33]} 47. Kc2 {[%clk 0:00:00]}  Kc5 {[%clk 0:00:33]} 0-1


[Site "https://www.chess.com"]

[Event "Titled Tuesday Blitz May 16 Early 2023"]
[White "Mohammed, Zozek Salah Mohammed"]
[Black "Sailer, Mike"]
[WhiteFideId "4803361"]
[BlackFideId "2012901"]
[WhiteElo "2211"]
[BlackElo "2109"]
[Result "0-1"]
[Round "10"]
[TimeControl "180+2"]
[Date "2023.05.16"]
[WhiteClock "0:02:36"]
[BlackClock "0:02:43"]

1. d4 {[%clk 0:02:56]}  d5 {[%clk 0:03:00]} 2. Nf3 {[%clk 0:02:55]}  Bf5 {[%clk 0:02:58]} 3. c4 {[%clk 0:02:55]}  e6 {[%clk 0:02:58]} 4. Nbd2 {[%clk 0:02:54]}  Nc6 {[%clk 0:02:58]} 5. g3 {[%clk 0:02:44]}  Nb4 {[%clk 0:02:54]} 6. e4 {[%clk 0:02:39]}  dxe4 {[%clk 0:02:54]} 7. Nh4 {[%clk 0:02:39]}  e3 {[%clk 0:02:53]} 8. Nxf5 {[%clk 0:02:35]}  exd2+ {[%clk 0:02:54]} 9. Bxd2 {[%clk 0:02:36]}  exf5 {[%clk 0:02:48]} 10. Bxb4 {[%clk 0:02:36]}  Bxb4+ {[%clk 0:02:45]} 11. Qd2 {[%clk 0:02:35]}  Bxd2+ {[%clk 0:02:43]} 12. Kxd2 {[%clk 0:02:36]} 0-1


[Site "https://www.chess.com"]

[Event "Titled Tuesday Blitz May 16 Early 2023"]
[White "Tokman, Ariel"]
[Black "Tarasova, Viktoriya"]
[WhiteFideId "117420"]
[BlackFideId "4175840"]
[WhiteElo "2263"]
[BlackElo "2182"]
[Result "0-1"]
[Round "10"]
[TimeControl "180+2"]
[Date "2023.05.16"]
[WhiteClock "0:00:03"]
[BlackClock "0:00:04"]

1. e4 {[%clk 0:03:00]}  e5 {[%clk 0:02:59]} 2. Nf3 {[%clk 0:03:00]}  Nc6 {[%clk 0:02:59]} 3. Bc4 {[%clk 0:03:00]}  Bc5 {[%clk 0:02:59]} 4. d3 {[%clk 0:03:00]}  Nf6 {[%clk 0:02:57]} 5. h3 {[%clk 0:02:59]}  h6 {[%clk 0:02:56]} 6. a3 {[%clk 0:03:00]}  a5 {[%clk 0:02:56]} 7. Qe2 {[%clk 0:02:57]}  d6 {[%clk 0:02:52]} 8. Be3 {[%clk 0:02:57]}  Bxe3 {[%clk 0:02:48]} 9. Qxe3 {[%clk 0:02:56]}  Be6 {[%clk 0:02:48]} 10. Ba2 {[%clk 0:02:49]}  Bxa2 {[%clk 0:02:46]} 11. Rxa2 {[%clk 0:02:50]}  O-O {[%clk 0:02:46]} 12. O-O {[%clk 0:02:49]}  Re8 {[%clk 0:02:46]} 13. Nc3 {[%clk 0:02:46]}  d5 {[%clk 0:02:43]} 14. exd5 {[%clk 0:02:45]}  Nxd5 {[%clk 0:02:43]} 15. Qe4 {[%clk 0:02:45]}  Nxc3 {[%clk 0:02:38]} 16. bxc3 {[%clk 0:02:45]}  Qd6 {[%clk 0:02:39]} 17. Rb1 {[%clk 0:02:43]}  b6 {[%clk 0:02:38]} 18. Rb5 {[%clk 0:02:39]}  Rad8 {[%clk 0:02:34]} 19. a4 {[%clk 0:02:31]}  Qe6 {[%clk 0:02:19]} 20. Ra1 {[%clk 0:02:26]}  f5 {[%clk 0:02:15]} 21. Qh4 {[%clk 0:02:09]}  e4 {[%clk 0:01:27]} 22. Re1 {[%clk 0:02:03]}  Qg6 {[%clk 0:01:23]} 23. dxe4 {[%clk 0:01:53]}  fxe4 {[%clk 0:01:19]} 24. Nh2 {[%clk 0:01:45]}  Rd2 {[%clk 0:01:16]} 25. Qf4 {[%clk 0:01:11]}  Rxc2 {[%clk 0:01:00]} 26. Qxc7 {[%clk 0:01:11]}  e3 {[%clk 0:00:43]} 27. Rf1 {[%clk 0:01:06]}  exf2+ {[%clk 0:00:25]} 28. Rxf2 {[%clk 0:00:56]}  Re1+ {[%clk 0:00:21]} 29. Nf1 {[%clk 0:00:54]}  Ree2 {[%clk 0:00:12]} 30. Rxe2 {[%clk 0:00:39]}  Rxe2 {[%clk 0:00:13]} 31. Qg3 {[%clk 0:00:34]}  Qe4 {[%clk 0:00:06]} 32. Rxb6 {[%clk 0:00:27]}  Ne5 {[%clk 0:00:06]} 33. Rb8+ {[%clk 0:00:06]}  Kh7 {[%clk 0:00:06]} 34. Rd8 {[%clk 0:00:05]}  Re1 {[%clk 0:00:06]} 35. Rd2 {[%clk 0:00:05]}  Qf5 {[%clk 0:00:05]} 36. Rf2 {[%clk 0:00:04]}  Rxf1+ {[%clk 0:00:04]} 37. Rxf1 {[%clk 0:00:04]}  Qe4 {[%clk 0:00:04]} 38. Qf2 {[%clk 0:00:04]}  Ng6 {[%clk 0:00:04]} 39. Qf5 {[%clk 0:00:04]}  Qe3+ {[%clk 0:00:04]} 40. Qf2 {[%clk 0:00:04]}  Qxc3 {[%clk 0:00:04]} 41. Kh2 {[%clk 0:00:04]}  Qc7+ {[%clk 0:00:04]} 42. Qg3 {[%clk 0:00:05]}  Qc4 {[%clk 0:00:05]} 43. Rf3 {[%clk 0:00:03]}  Qxa4 {[%clk 0:00:05]} 44. h4 {[%clk 0:00:04]}  Qb5 {[%clk 0:00:05]} 45. Rf4 {[%clk 0:00:03]}  Nxf4 {[%clk 0:00:04]} 46. Qxf4 {[%clk 0:00:04]}  a4 {[%clk 0:00:05]} 47. Qe4+ {[%clk 0:00:05]}  Kg8 {[%clk 0:00:05]} 48. Qe8+ {[%clk 0:00:03]}  Qxe8 {[%clk 0:00:04]} 0-1


[Site "https://www.chess.com"]

[Event "Titled Tuesday Blitz May 16 Early 2023"]
[White "Ansh M Shah"]
[Black "Baches Garcia, Guillermo"]
[WhiteFideId "25033379"]
[BlackFideId "2209764"]
[WhiteElo "2084"]
[BlackElo "2479"]
[Result "0-1"]
[Round "10"]
[TimeControl "180+2"]
[Date "2023.05.16"]
[WhiteClock "0:00:20"]
[BlackClock "0:00:14"]

1. d4 {[%clk 0:03:00]}  d5 {[%clk 0:03:00]} 2. c4 {[%clk 0:03:00]}  e6 {[%clk 0:03:00]} 3. g3 {[%clk 0:03:00]}  h6 {[%clk 0:03:00]} 4. Bg2 {[%clk 0:03:01]}  Nf6 {[%clk 0:03:00]} 5. Nf3 {[%clk 0:03:02]}  Bd6 {[%clk 0:02:59]} 6. O-O {[%clk 0:03:03]}  O-O {[%clk 0:02:58]} 7. Nbd2 {[%clk 0:03:03]}  c5 {[%clk 0:02:57]} 8. Qc2 {[%clk 0:03:02]}  cxd4 {[%clk 0:02:48]} 9. Nxd4 {[%clk 0:03:02]}  Nc6 {[%clk 0:02:47]} 10. Nxc6 {[%clk 0:02:56]}  bxc6 {[%clk 0:02:47]} 11. b3 {[%clk 0:02:56]}  e5 {[%clk 0:02:36]} 12. Bb2 {[%clk 0:02:55]}  Be6 {[%clk 0:02:32]} 13. Rfd1 {[%clk 0:02:37]}  Qe7 {[%clk 0:02:26]} 14. Rac1 {[%clk 0:02:36]}  Rac8 {[%clk 0:02:17]} 15. e3 {[%clk 0:02:30]}  Rfd8 {[%clk 0:02:10]} 16. Nf3 {[%clk 0:02:21]}  Bg4 {[%clk 0:02:02]} 17. h3 {[%clk 0:02:21]}  Bh5 {[%clk 0:02:02]} 18. Nh4 {[%clk 0:02:19]}  Bxd1 {[%clk 0:01:59]} 19. Rxd1 {[%clk 0:02:17]}  Qe6 {[%clk 0:01:53]} 20. Nf5 {[%clk 0:02:12]}  Bf8 {[%clk 0:01:49]} 21. g4 {[%clk 0:02:12]}  g6 {[%clk 0:01:42]} 22. Ng3 {[%clk 0:02:09]}  Bg7 {[%clk 0:01:40]} 23. Qe2 {[%clk 0:01:55]}  dxc4 {[%clk 0:01:36]} 24. bxc4 {[%clk 0:01:51]}  Rxd1+ {[%clk 0:01:35]} 25. Qxd1 {[%clk 0:01:52]}  Qxc4 {[%clk 0:01:32]} 26. Bxe5 {[%clk 0:01:52]}  Qxa2 {[%clk 0:01:29]} 27. Qd4 {[%clk 0:01:52]}  Qe6 {[%clk 0:01:17]} 28. Ne4 {[%clk 0:01:47]}  c5 {[%clk 0:01:05]} 29. Nxc5 {[%clk 0:01:40]}  Qb6 {[%clk 0:00:52]} 30. Na4 {[%clk 0:01:19]}  Qxd4 {[%clk 0:00:49]} 31. Bxd4 {[%clk 0:01:20]}  a5 {[%clk 0:00:42]} 32. Bf1 {[%clk 0:00:57]}  Nd7 {[%clk 0:00:40]} 33. Bxg7 {[%clk 0:00:51]}  Kxg7 {[%clk 0:00:40]} 34. Bb5 {[%clk 0:00:51]}  Nc5 {[%clk 0:00:34]} 35. Nc3 {[%clk 0:00:36]}  Rb8 {[%clk 0:00:31]} 36. Kf1 {[%clk 0:00:32]}  Ne4 {[%clk 0:00:26]} 37. Nxe4 {[%clk 0:00:26]}  Rxb5 {[%clk 0:00:25]} 38. Ke2 {[%clk 0:00:26]}  Rb2+ {[%clk 0:00:20]} 39. Kd3 {[%clk 0:00:26]}  a4 {[%clk 0:00:20]} 40. Kc3 {[%clk 0:00:26]}  a3 {[%clk 0:00:20]} 41. Nc5 {[%clk 0:00:25]}  Rxf2 {[%clk 0:00:19]} 42. Nb3 {[%clk 0:00:25]}  a2 {[%clk 0:00:18]} 43. Kd3 {[%clk 0:00:25]}  Rf1 {[%clk 0:00:13]} 44. Ke2 {[%clk 0:00:23]}  a1=Q {[%clk 0:00:13]} 45. Nxa1 {[%clk 0:00:20]}  Rxa1 {[%clk 0:00:14]} 0-1


[Site "https://www.chess.com"]

[Event "Titled Tuesday Blitz May 16 Early 2023"]
[White "Osinovsky, Stepan"]
[Black "Prieto Aranguren, Alain"]
[WhiteFideId "4157354"]
[BlackFideId "2268906"]
[WhiteElo "2222"]
[BlackElo "2209"]
[Result "0-1"]
[Round "10"]
[TimeControl "180+2"]
[Date "2023.05.16"]
[WhiteClock "0:00:00"]
[BlackClock "0:01:14"]

1. Nf3 {[%clk 0:03:00]}  Nf6 {[%clk 0:02:56]} 2. g3 {[%clk 0:03:01]}  Nc6 {[%clk 0:02:54]} 3. Bg2 {[%clk 0:03:02]}  e5 {[%clk 0:02:54]} 4. O-O {[%clk 0:03:01]}  e4 {[%clk 0:02:53]} 5. Ne1 {[%clk 0:03:01]}  d5 {[%clk 0:02:53]} 6. d3 {[%clk 0:03:01]}  exd3 {[%clk 0:02:51]} 7. Nxd3 {[%clk 0:02:55]}  Be7 {[%clk 0:02:49]} 8. b3 {[%clk 0:02:50]}  O-O {[%clk 0:02:48]} 9. Bb2 {[%clk 0:02:50]}  Bg4 {[%clk 0:02:44]} 10. Nd2 {[%clk 0:02:36]}  Qd7 {[%clk 0:02:38]} 11. Nf3 {[%clk 0:02:30]}  Bh3 {[%clk 0:02:35]} 12. Rc1 {[%clk 0:02:08]}  Bxg2 {[%clk 0:02:32]} 13. Kxg2 {[%clk 0:02:08]}  Rad8 {[%clk 0:02:26]} 14. c4 {[%clk 0:02:06]}  dxc4 {[%clk 0:02:26]} 15. Rxc4 {[%clk 0:02:07]}  Qc8 {[%clk 0:02:22]} 16. Qc2 {[%clk 0:02:05]}  Nd5 {[%clk 0:02:13]} 17. a3 {[%clk 0:01:58]}  Nb6 {[%clk 0:02:09]} 18. Re4 {[%clk 0:01:51]}  Rfe8 {[%clk 0:02:03]} 19. Nf4 {[%clk 0:01:41]}  Bf8 {[%clk 0:01:56]} 20. Ng5 {[%clk 0:01:28]}  Qf5 {[%clk 0:01:42]} 21. h4 {[%clk 0:00:09]}  h6 {[%clk 0:01:33]} 22. Rc4 {[%clk 0:00:07]}  Qxc2 {[%clk 0:01:30]} 23. Rxc2 {[%clk 0:00:08]}  hxg5 {[%clk 0:01:30]} 24. hxg5 {[%clk 0:00:09]}  Bd6 {[%clk 0:01:23]} 25. Nh5 {[%clk 0:00:06]}  Be5 {[%clk 0:01:22]} 26. f4 {[%clk 0:00:05]}  Bxb2 {[%clk 0:01:21]} 27. Rxb2 {[%clk 0:00:06]}  Nd4 {[%clk 0:01:20]} 28. Kf2 {[%clk 0:00:04]}  Nd5 {[%clk 0:01:18]} 29. Re1 {[%clk 0:00:03]}  Ne3 {[%clk 0:01:15]} 30. b4 {[%clk 0:00:00]}  b5 {[%clk 0:01:14]} 0-1


[Site "https://www.chess.com"]

[Event "Titled Tuesday Blitz May 16 Early 2023"]
[White "Jiganchine, Roman"]
[Black "Yosha_Iglesias"]
[WhiteFideId "2603667"]
[WhiteElo "2272"]
[BlackElo "2410"]
[Result "0-1"]
[Round "10"]
[TimeControl "180+2"]
[Date "2023.05.16"]
[WhiteClock "0:02:05"]
[BlackClock "0:01:46"]

1. e4 {[%clk 0:02:58]}  c5 {[%clk 0:02:59]} 2. Nf3 {[%clk 0:02:58]}  d6 {[%clk 0:02:59]} 3. Bb5+ {[%clk 0:02:57]}  Bd7 {[%clk 0:03:00]} 4. Bxd7+ {[%clk 0:02:56]}  Qxd7 {[%clk 0:03:01]} 5. c4 {[%clk 0:02:54]}  Nc6 {[%clk 0:03:00]} 6. d4 {[%clk 0:02:53]}  cxd4 {[%clk 0:02:57]} 7. Nxd4 {[%clk 0:02:53]}  Nf6 {[%clk 0:02:57]} 8. Nc3 {[%clk 0:02:51]}  g6 {[%clk 0:02:54]} 9. f3 {[%clk 0:02:50]}  Nxd4 {[%clk 0:02:50]} 10. Be3 {[%clk 0:02:51]}  Nc6 {[%clk 0:02:49]} 11. O-O {[%clk 0:02:49]}  Bg7 {[%clk 0:02:44]} 12. Nd5 {[%clk 0:02:48]}  O-O {[%clk 0:02:40]} 13. h4 {[%clk 0:02:44]}  Ne5 {[%clk 0:02:34]} 14. c5 {[%clk 0:02:35]}  Nxd5 {[%clk 0:02:31]} 15. Qxd5 {[%clk 0:02:29]}  dxc5 {[%clk 0:02:29]} 16. Qxc5 {[%clk 0:02:27]}  Rfc8 {[%clk 0:02:24]} 17. Qb4 {[%clk 0:02:24]}  Nd3 {[%clk 0:02:10]} 18. Qb3 {[%clk 0:02:22]}  Nxb2 {[%clk 0:02:02]} 19. Rab1 {[%clk 0:02:19]}  Rc3 {[%clk 0:01:52]} 20. Qxb2 {[%clk 0:02:16]}  Rxe3 {[%clk 0:01:52]} 21. Qb4 {[%clk 0:02:05]}  Qd4 {[%clk 0:01:46]} 0-1


[Site "https://www.chess.com"]

[Event "Titled Tuesday Blitz May 16 Early 2023"]
[White "Pandey Srishti"]
[Black "Thiel, Thomas"]
[WhiteFideId "35093290"]
[BlackFideId "4615964"]
[WhiteElo "2123"]
[BlackElo "2213"]
[Result "1-0"]
[Round "10"]
[TimeControl "180+2"]
[Date "2023.05.16"]
[WhiteClock "0:00:22"]
[BlackClock "0:00:00"]

1. e4 {[%clk 0:03:00]}  d5 {[%clk 0:02:57]} 2. exd5 {[%clk 0:02:59]}  Nf6 {[%clk 0:02:57]} 3. d4 {[%clk 0:02:57]}  Nxd5 {[%clk 0:02:55]} 4. c4 {[%clk 0:02:53]}  Nb6 {[%clk 0:02:54]} 5. Nc3 {[%clk 0:02:51]}  e5 {[%clk 0:02:52]} 6. d5 {[%clk 0:02:38]}  Bb4 {[%clk 0:02:49]} 7. Be2 {[%clk 0:02:27]}  c6 {[%clk 0:02:44]} 8. Bd2 {[%clk 0:01:48]}  cxd5 {[%clk 0:02:41]} 9. cxd5 {[%clk 0:01:47]}  O-O {[%clk 0:02:33]} 10. a3 {[%clk 0:01:46]}  Be7 {[%clk 0:02:29]} 11. Be3 {[%clk 0:01:42]}  Bf5 {[%clk 0:02:21]} 12. Nf3 {[%clk 0:01:37]}  Na6 {[%clk 0:02:15]} 13. O-O {[%clk 0:01:36]}  Nc5 {[%clk 0:02:07]} 14. Nxe5 {[%clk 0:01:32]}  Ne4 {[%clk 0:01:59]} 15. Bxb6 {[%clk 0:01:19]}  Qxb6 {[%clk 0:01:49]} 16. Nxe4 {[%clk 0:01:18]}  Bxe4 {[%clk 0:01:44]} 17. Nd7 {[%clk 0:01:18]}  Qg6 {[%clk 0:01:39]} 18. Bf3 {[%clk 0:01:18]}  Rfd8 {[%clk 0:01:33]} 19. Bxe4 {[%clk 0:00:59]}  Qxe4 {[%clk 0:01:21]} 20. Re1 {[%clk 0:00:58]}  Qh4 {[%clk 0:01:03]} 21. g3 {[%clk 0:00:57]}  Qg5 {[%clk 0:01:00]} 22. Re5 {[%clk 0:00:32]}  Rxd7 {[%clk 0:00:43]} 23. Rxg5 {[%clk 0:00:31]}  Bxg5 {[%clk 0:00:43]} 24. Qg4 {[%clk 0:00:31]}  Rxd5 {[%clk 0:00:40]} 25. Rd1 {[%clk 0:00:31]}  Rxd1+ {[%clk 0:00:37]} 26. Qxd1 {[%clk 0:00:32]}  Rc8 {[%clk 0:00:35]} 27. Qd7 {[%clk 0:00:31]}  Rb8 {[%clk 0:00:29]} 28. Qc7 {[%clk 0:00:28]}  Re8 {[%clk 0:00:23]} 29. Qxb7 {[%clk 0:00:27]}  Bf6 {[%clk 0:00:23]} 30. Qxa7 {[%clk 0:00:27]}  Bxb2 {[%clk 0:00:18]} 31. a4 {[%clk 0:00:27]}  g6 {[%clk 0:00:16]} 32. a5 {[%clk 0:00:27]}  Re1+ {[%clk 0:00:13]} 33. Kg2 {[%clk 0:00:27]}  Kg7 {[%clk 0:00:11]} 34. a6 {[%clk 0:00:26]}  Ra1 {[%clk 0:00:09]} 35. Qb6 {[%clk 0:00:26]}  Bf6 {[%clk 0:00:05]} 36. a7 {[%clk 0:00:25]}  h5 {[%clk 0:00:00]} 37. Qb7 {[%clk 0:00:22]} 1-0


[Site "https://www.chess.com"]

[Event "Titled Tuesday Blitz May 16 Early 2023"]
[White "Petrova, Irina"]
[Black "Kuchava, Ana"]
[WhiteFideId "14124122"]
[BlackFideId "13605348"]
[WhiteElo "2084"]
[BlackElo "2001"]
[Result "1-0"]
[Round "10"]
[TimeControl "180+2"]
[Date "2023.05.16"]
[WhiteClock "0:00:46"]
[BlackClock "0:00:01"]

1. e4 {[%clk 0:03:00]}  c5 {[%clk 0:02:59]} 2. Nf3 {[%clk 0:03:00]}  d6 {[%clk 0:02:59]} 3. Bb5+ {[%clk 0:03:01]}  Bd7 {[%clk 0:02:58]} 4. Bxd7+ {[%clk 0:03:01]}  Qxd7 {[%clk 0:02:59]} 5. O-O {[%clk 0:03:02]}  Nc6 {[%clk 0:02:58]} 6. Re1 {[%clk 0:03:03]}  Nf6 {[%clk 0:02:57]} 7. c3 {[%clk 0:03:03]}  e6 {[%clk 0:02:53]} 8. d4 {[%clk 0:03:04]}  cxd4 {[%clk 0:02:54]} 9. cxd4 {[%clk 0:03:04]}  d5 {[%clk 0:02:54]} 10. e5 {[%clk 0:03:04]}  Ne4 {[%clk 0:02:54]} 11. Nbd2 {[%clk 0:03:05]}  Nxd2 {[%clk 0:02:54]} 12. Bxd2 {[%clk 0:03:06]}  Be7 {[%clk 0:02:54]} 13. Rc1 {[%clk 0:03:03]}  Rc8 {[%clk 0:02:53]} 14. a3 {[%clk 0:03:02]}  O-O {[%clk 0:02:47]} 15. Rc3 {[%clk 0:03:00]}  b5 {[%clk 0:02:21]} 16. h4 {[%clk 0:02:46]}  b4 {[%clk 0:02:10]} 17. Rd3 {[%clk 0:02:44]}  bxa3 {[%clk 0:02:02]} 18. bxa3 {[%clk 0:02:45]}  Qc7 {[%clk 0:01:35]} 19. h5 {[%clk 0:02:40]}  Na5 {[%clk 0:01:31]} 20. h6 {[%clk 0:02:14]}  g6 {[%clk 0:01:31]} 21. Bb4 {[%clk 0:02:05]}  Nc4 {[%clk 0:01:23]} 22. Rc3 {[%clk 0:01:45]}  Bxb4 {[%clk 0:01:16]} 23. axb4 {[%clk 0:01:46]}  Qe7 {[%clk 0:01:17]} 24. Qc1 {[%clk 0:01:41]}  Nb6 {[%clk 0:01:06]} 25. Rxc8 {[%clk 0:01:37]}  Rxc8 {[%clk 0:01:07]} 26. Qf4 {[%clk 0:01:37]}  Qxb4 {[%clk 0:00:52]} 27. Qf6 {[%clk 0:01:34]}  Qf8 {[%clk 0:00:52]} 28. Ng5 {[%clk 0:01:27]}  Nd7 {[%clk 0:00:49]} 29. Qf4 {[%clk 0:01:23]}  Rc7 {[%clk 0:00:42]} 30. Nf3 {[%clk 0:01:06]}  Nb6 {[%clk 0:00:39]} 31. Nh2 {[%clk 0:01:06]}  a5 {[%clk 0:00:21]} 32. Ng4 {[%clk 0:01:06]}  a4 {[%clk 0:00:20]} 33. Nf6+ {[%clk 0:01:02]}  Kh8 {[%clk 0:00:20]} 34. Ne8 {[%clk 0:00:59]}  Kg8 {[%clk 0:00:17]} 35. Nxc7 {[%clk 0:00:59]}  a3 {[%clk 0:00:12]} 36. Nb5 {[%clk 0:00:58]}  a2 {[%clk 0:00:12]} 37. Nd6 {[%clk 0:00:55]}  Nc4 {[%clk 0:00:10]} 38. Nxc4 {[%clk 0:00:53]}  dxc4 {[%clk 0:00:11]} 39. Ra1 {[%clk 0:00:52]}  Qb4 {[%clk 0:00:07]} 40. Qf6 {[%clk 0:00:48]}  Qb1+ {[%clk 0:00:04]} 41. Kh2 {[%clk 0:00:47]}  Kf8 {[%clk 0:00:01]} 42. Qd8# {[%clk 0:00:46]} 1-0


[Site "https://www.chess.com"]